bitfinex-derivatives/quotes_BTCF0:USTF0_20251111
["timestamp","ask_amount","ask_price","bid_price","bid_amount"]
[1762881706510,1.72073769,103600.0,103590.0,0.01535803]
[1762881707003,1.72073769,103600.0,103590.0,0.03834803]
[1762881708816,1.72073769,103600.0,103590.0,0.01535803]
[1762881709215,1.77262366,103600.0,103590.0,0.01535803]
[1762881709414,1.21127771,103600.0,103590.0,0.06105803]
[1762881709615,1.52635174,103600.0,103590.0,0.06105803]
[1762881710418,1.57823771,103600.0,103590.0,0.06105803]
[1762881710618,1.57823771,103600.0,103590.0,0.15761673]
[1762881710815,1.77258366,103600.0,103590.0,0.03834803]
[1762881711020,1.77258366,103600.0,103590.0,0.01535803]
[1762881713418,0.0965587,103590.0,103580.0,0.15544246]
[1762881713618,0.65170465,103590.0,103580.0,0.06107259]
[1762881713923,0.65170465,103590.0,103580.0,0.15764059]
[1762881715122,0.65170465,103590.0,103580.0,0.06107259]
[1762881715324,0.65170465,103590.0,103580.0,0.15764059]
[1762881715926,0.4573587,103590.0,103580.0,0.15764059]
[1762881716118,0.65170465,103590.0,103580.0,0.15764059]
[1762881716425,0.65170465,103590.0,103580.0,0.06107259]
[1762881718919,0.7684256,103590.0,103580.0,0.15764059]
[1762881719121,0.51633345,103590.0,103580.0,0.15764059]
[1762881719323,0.88317345,103590.0,103580.0,0.15764059]
[1762881721116,0.15553345,103590.0,103580.0,0.15764059]
[1762881721327,0.52237345,103590.0,103580.0,0.15764059]
[1762881721525,0.15553345,103590.0,103580.0,0.15764059]
[1762881721725,0.51633345,103600.0,103590.0,0.1533787]
[1762881721932,0.50937183,103610.0,103600.0,0.1533694]
[1762881722233,1.03174408,103610.0,103600.0,0.15556743]
[1762881722527,0.88339801,103610.0,103600.0,0.15556743]
[1762881723821,0.97993811,103610.0,103600.0,0.15556743]
[1762881724027,0.98193811,103610.0,103600.0,0.15556743]
[1762881724529,0.97993811,103610.0,103600.0,0.15556743]
[1762881724720,0.88339801,103610.0,103600.0,0.15556743]
[1762881724915,0.82440466,103610.0,103600.0,0.15556743]
[1762881725120,0.36706456,103610.0,103600.0,0.15556743]
[1762881725721,0.56134626,103610.0,103600.0,0.15556743]
[1762881726129,0.65788636,103610.0,103600.0,0.15556743]
[1762881726929,1.21593173,103610.0,103600.0,0.05901803]
[1762881727122,1.16404576,103610.0,103600.0,0.01480803]
[1762881727322,1.21593173,103610.0,103600.0,0.00219803]
[1762881728037,1.16404576,103610.0,103600.0,0.00219803]
[1762881728629,1.16404576,103610.0,103600.0,0.15556743]
[1762881728830,1.06750566,103610.0,103600.0,0.15556743]
[1762881729031,1.16404576,103610.0,103600.0,0.05901803]
[1762881729224,1.21593173,103610.0,103600.0,0.05901803]
[1762881729930,1.21621173,103610.0,103600.0,0.15556743]
[1762881730133,0.75247163,103610.0,103600.0,0.15556743]
[1762881730434,1.21621173,103610.0,103600.0,0.15556743]
[1762881730735,1.11967163,103610.0,103600.0,0.15556743]
[1762881730928,1.21621173,103610.0,103600.0,0.15556743]
[1762881731233,0.70058566,103610.0,103600.0,0.15556743]
[1762881731435,0.92238626,103610.0,103600.0,0.15556743]
[1762881731930,0.00014456,103610.0,103600.0,0.15556743]
[1762881732232,0.36738456,103610.0,103600.0,0.75768743]
[1762881732636,0.00014456,103610.0,103600.0,0.51636743]
[1762881733028,0.00014456,103610.0,103600.0,0.75768743]
[1762881733228,0.00014456,103610.0,103600.0,0.75868743]
[1762881733430,0.00014456,103610.0,103600.0,0.75968743]
[1762881733630,0.5550817,103630.0,103620.0,0.05682]
[1762881733830,0.70348597,103640.0,103630.0,0.1533414]
[1762881734025,1.07084597,103640.0,103630.0,0.05901803]
[1762881734230,1.41060668,103640.0,103630.0,0.01480803]
[1762881734939,1.41160668,103640.0,103630.0,0.01480803]
[1762881735335,1.41160668,103640.0,103630.0,0.05901803]
[1762881735936,1.21832498,103640.0,103630.0,0.05901803]
[1762881736134,1.16643901,103640.0,103630.0,0.05901803]
[1762881737143,0.79907901,103640.0,103630.0,0.05901803]
[1762881737331,1.16635901,103640.0,103630.0,0.05901803]
[1762881738035,1.16631901,103640.0,103630.0,0.05901803]
[1762881738232,1.06980071,103640.0,103630.0,0.15553943]
[1762881738434,1.16631281,103640.0,103630.0,0.15553943]
[1762881738633,0.70256071,103640.0,103630.0,0.15553943]
[1762881738943,1.06976071,103640.0,103630.0,0.15553943]
[1762881740037,0.70256071,103640.0,103630.0,0.15553943]
[1762881740246,0.72996,103640.0,103630.0,0.15553943]
[1762881740438,0.9242417,103640.0,103630.0,0.15553943]
[1762881740634,1.0207538,103640.0,103630.0,0.15553943]
[1762881740832,1.0207538,103640.0,103630.0,0.05901803]
[1762881741036,1.0207538,103640.0,103630.0,0.15553943]
[1762881741239,0.9242417,103640.0,103630.0,0.15553943]
[1762881743445,0.36908,103640.0,103630.0,0.15553943]
[1762881743641,0.002,103640.0,103630.0,0.15553943]
[1762881743834,0.002,103640.0,103630.0,0.39677943]
[1762881744035,0.36924,103640.0,103630.0,0.75757943]
[1762881744744,0.36924,103640.0,103630.0,0.51633943]
[1762881744939,0.36924,103640.0,103630.0,0.75757943]
[1762881745144,0.36924,103640.0,103630.0,0.51633943]
[1762881745345,0.36924,103640.0,103630.0,0.75757943]
[1762881745346,0.002,103640.0,103630.0,0.75757943]
[1762881745544,0.36750456,103650.0,103640.0,0.1568321]
[1762881745847,0.36750456,103650.0,103640.0,0.51983013]
[1762881746238,0.36746456,103650.0,103640.0,0.51983013]
[1762881746441,0.00014456,103650.0,103640.0,0.51983013]
[1762881746643,0.36746456,103650.0,103640.0,0.51983013]
[1762881747443,0.46396736,103650.0,103640.0,0.51983013]
[1762881747644,0.36746456,103650.0,103640.0,0.51983013]
[1762881747943,0.46396736,103650.0,103640.0,0.51983013]
[1762881748246,0.46396736,103650.0,103640.0,0.15903013]
[1762881749246,1.10939617,103650.0,103640.0,0.15903013]
[1762881749748,0.36734456,103650.0,103640.0,0.15903013]
[1762881750140,0.36734456,103650.0,103640.0,0.51983013]
[1762881750945,0.46384736,103650.0,103640.0,0.51983013]
[1762881751142,1.10939617,103650.0,103640.0,0.06251803]
[1762881751347,1.25499027,103650.0,103640.0,0.15903013]
[1762881751940,0.89419027,103650.0,103640.0,0.15903013]
[1762881752140,1.25499027,103650.0,103640.0,0.15903013]
[1762881752346,0.89419027,103650.0,103640.0,0.15903013]
[1762881753749,1.25499027,103650.0,103640.0,0.15903013]
[1762881754151,1.25499027,103650.0,103640.0,0.06251803]
[1762881754341,1.25499027,103650.0,103640.0,0.15903013]
[1762881754548,1.25499027,103650.0,103640.0,0.06251803]
[1762881755642,1.25499027,103650.0,103640.0,0.00219803]
[1762881756945,1.25499027,103650.0,103640.0,0.01605803]
[1762881757445,1.25499027,103650.0,103640.0,0.11257013]
[1762881757644,1.15848747,103650.0,103640.0,0.13585013]
[1762881757852,1.25491027,103650.0,103640.0,0.15903013]
[1762881758064,1.15840747,103650.0,103640.0,0.15903013]
[1762881758251,1.25491027,103650.0,103640.0,0.15903013]
[1762881759249,1.15836747,103650.0,103640.0,0.15903013]
[1762881760348,0.50653866,103650.0,103640.0,0.15903013]
[1762881760547,0.72802456,103650.0,103640.0,0.15903013]
[1762881761556,0.82452736,103650.0,103640.0,0.15903013]
[1762881762351,1.01277337,103650.0,103640.0,0.15903013]
[1762881762550,0.72802456,103650.0,103640.0,0.15903013]
[1762881762757,1.01277337,103650.0,103640.0,0.15903013]
[1762881763460,0.72802456,103650.0,103640.0,0.15903013]
[1762881763962,0.36722456,103650.0,103640.0,0.15903013]
[1762881764164,0.00014456,103650.0,103640.0,0.15903013]
[1762881764363,0.00014456,103650.0,103640.0,0.51983013]
[1762881764562,0.36710456,103650.0,103640.0,0.51983013]
[1762881764766,0.09664736,103650.0,103640.0,0.15903013]
[1762881764950,0.46360736,103650.0,103640.0,0.15903013]
[1762881765156,0.45744736,103650.0,103640.0,0.15903013]
[1762881765355,1.10915617,103650.0,103640.0,0.06251803]
[1762881765567,1.10915617,103650.0,103640.0,0.01605803]
[1762881765764,1.10915617,103650.0,103640.0,0.03933803]
[1762881768665,1.10915617,103650.0,103640.0,0.00219803]
[1762881768867,1.1351258,103650.0,103640.0,0.00219803]
[1762881769269,1.1351258,103650.0,103640.0,0.01605803]
[1762881769564,1.1351258,103650.0,103640.0,0.03933803]
[1762881769954,1.1351258,103650.0,103640.0,0.13585013]
[1762881770154,1.1351258,103650.0,103640.0,0.03933803]
[1762881770764,1.1351258,103650.0,103640.0,0.01605803]
[1762881770963,1.27963773,103650.0,103640.0,0.01605803]
[1762881771167,0.0965121,103640.0,103630.0,0.01261]
[1762881771366,0.61267132,103640.0,103630.0,0.03600803]
[1762881771662,0.75718325,103640.0,103630.0,0.03600803]
[1762881772569,0.75718325,103640.0,103630.0,0.15517943]
[1762881773076,0.81006922,103640.0,103630.0,0.15517943]
[1762881773257,0.75818325,103640.0,103630.0,0.15517943]
[1762881773866,0.81006922,103640.0,103630.0,0.15517943]
[1762881774852,0.81006922,103640.0,103630.0,0.05865803]
[1762881775462,0.81006922,103640.0,103630.0,0.03600803]
[1762881775675,0.65471,103640.0,103630.0,0.05865803]
[1762881775966,0.81006922,103640.0,103630.0,0.05865803]
[1762881776169,0.81006922,103640.0,103630.0,0.03600803]
[1762881776372,0.81006922,103640.0,103630.0,0.01480803]
[1762881776866,0.65471,103640.0,103630.0,0.03600803]
[1762881777168,0.81006922,103640.0,103630.0,0.03600803]
[1762881777363,0.81006922,103640.0,103630.0,0.01480803]
[1762881777762,0.81006922,103640.0,103630.0,0.13443943]
[1762881777965,0.81006922,103640.0,103630.0,0.15667943]
[1762881780165,0.81006922,103640.0,103630.0,0.06015803]
[1762881780468,0.81006922,103640.0,103630.0,0.03791803]
[1762881780866,0.81006922,103640.0,103630.0,0.01480803]
[1762881781254,0.0965214,103630.0,103620.0,0.00014456]
[1762881781567,1.17534708,103630.0,103620.0,0.03830259]
[1762881781767,1.17534708,103630.0,103620.0,0.01519259]
[1762881783073,1.17534708,103630.0,103620.0,0.03830259]
[1762881783562,1.17534708,103630.0,103620.0,0.13483339]
[1762881783763,1.1233058,103630.0,103620.0,0.13483339]
[1762881784366,1.1233058,103630.0,103620.0,0.03830259]
[1762881784968,1.1233058,103630.0,103620.0,0.13483329]
[1762881785169,1.1233058,103630.0,103620.0,0.15707329]
[1762881785369,1.1233058,103630.0,103620.0,0.06054259]
[1762881786262,1.1233058,103630.0,103620.0,0.15707329]
[1762881786770,1.1233058,103630.0,103620.0,0.06054259]
[1762881788471,1.1233058,103630.0,103620.0,0.15707329]
[1762881788873,1.1233058,103630.0,103620.0,0.06054259]
[1762881789072,1.1233058,103630.0,103620.0,0.03830259]
[1762881789371,1.27866502,103630.0,103620.0,0.00014456]
[1762881789677,1.3307063,103630.0,103620.0,0.00014456]
[1762881790561,1.3307063,103630.0,103620.0,4.56e-06]
[1762881790771,0.0965401,103610.0,103600.0,0.05821]
[1762881791062,0.0965401,103610.0,103600.0,0.06040803]
[1762881791063,1.12395366,103610.0,103600.0,0.06040803]
[1762881791268,0.0965494,103600.0,103590.0,0.0926002]
[1762881791468,0.57792916,103600.0,103590.0,0.09479823]
[1762881792067,0.42256994,103600.0,103590.0,0.09479823]
[1762881792275,0.57792916,103600.0,103590.0,0.06039803]
[1762881792469,0.57792916,103600.0,103590.0,0.15695673]
[1762881793067,0.57792916,103600.0,103590.0,0.06039803]
[1762881793868,0.57792916,103600.0,103590.0,0.06439803]
[1762881794168,0.42256994,103600.0,103590.0,0.16095673]
[1762881794375,0.57792916,103600.0,103590.0,0.16095673]
[1762881795272,0.57792916,103600.0,103590.0,0.06439803]
[1762881795463,0.8790306,103600.0,103590.0,0.00619803]
[1762881795665,0.0965587,103590.0,103580.0,0.00014456]
[1762881795968,1.27883508,103590.0,103580.0,0.00014456]
[1762881796277,1.27883508,103590.0,103580.0,0.01299456]
[1762881796463,1.27883508,103590.0,103580.0,0.06054259]
[1762881796670,1.27883508,103590.0,103580.0,0.01519259]
[1762881798371,1.27883508,103590.0,103580.0,0.03830259]
[1762881798878,1.27883508,103590.0,103580.0,0.00234259]
[1762881799779,1.27883508,103590.0,103580.0,0.00014456]
[1762881799978,0.096568,103580.0,103570.0,8.645e-05]
[1762881800282,0.75770937,103580.0,103570.0,0.00228448]
[1762881800579,0.75770937,103580.0,103570.0,0.06015448]
[1762881800778,0.75770937,103580.0,103570.0,0.15673178]
[1762881800973,0.66114137,103580.0,103570.0,0.15673178]
[1762881801179,0.66114137,103580.0,103570.0,0.15873178]
[1762881801583,0.75770937,103580.0,103570.0,0.15873178]
[1762881802981,1.12458937,103580.0,103570.0,0.15873178]
[1762881803278,1.12458937,103580.0,103570.0,0.06215448]
[1762881804077,1.12458937,103580.0,103570.0,0.00428448]
[1762881804281,1.12458937,103580.0,103570.0,0.00208645]
[1762881804981,1.43601884,103580.0,103570.0,0.00208645]
[1762881806582,0.0965773,103570.0,103560.0,0.00014456]
[1762881806770,0.76857506,103570.0,103550.0,0.153316]
[1762881806970,0.67199246,103560.0,103550.0,0.15551403]
[1762881807173,1.03907246,103560.0,103550.0,0.15551403]
[1762881807378,1.18334669,103560.0,103550.0,0.15551403]
[1762881807571,1.18344725,103560.0,103550.0,0.15551403]
[1762881807780,1.18344725,103560.0,103550.0,0.15951403]
[1762881807981,0.81636725,103560.0,103550.0,0.15951403]
[1762881808280,1.18344725,103560.0,103550.0,0.15951403]
[1762881808981,1.28003395,103560.0,103550.0,0.15951403]
[1762881809180,1.18344725,103560.0,103550.0,0.15951403]
[1762881809380,0.87225479,103560.0,103550.0,0.15951403]
[1762881809586,1.18344725,103560.0,103550.0,0.15951403]
[1762881809783,0.50517479,103560.0,103550.0,0.31611026]
[1762881809989,0.66705102,103560.0,103550.0,0.67491026]
[1762881810178,0.66705102,103560.0,103550.0,0.67791026]
[1762881810678,0.66705102,103560.0,103550.0,0.16151403]
[1762881810890,0.66705102,103560.0,103550.0,0.52231403]
[1762881811087,0.66705102,103560.0,103550.0,0.16151403]
[1762881811279,0.91923395,103560.0,103550.0,0.16151403]
[1762881811478,0.91923395,103560.0,103550.0,0.06491803]
[1762881811683,1.28003395,103560.0,103550.0,0.16151403]
[1762881812588,1.28003395,103560.0,103550.0,0.06491803]
[1762881813688,1.28003395,103560.0,103550.0,0.16151403]
[1762881814388,1.18344725,103560.0,103550.0,0.16151403]
[1762881814688,1.28003395,103560.0,103550.0,0.16151403]
[1762881815482,1.28003395,103560.0,103550.0,0.06491803]
[1762881815684,1.28003395,103560.0,103550.0,0.16151403]
[1762881816590,0.87225479,103560.0,103550.0,0.16151403]
[1762881816896,0.66697102,103560.0,103550.0,0.31711026]
[1762881817689,0.66697102,103560.0,103550.0,0.16151403]
[1762881818084,0.29997102,103560.0,103550.0,0.16151403]
[1762881818279,0.66697102,103560.0,103550.0,0.16151403]
[1762881819687,0.66697102,103560.0,103550.0,0.52231403]
[1762881819894,0.46368726,103560.0,103550.0,0.52231403]
[1762881820095,0.52269679,103560.0,103550.0,0.52231403]
[1762881820389,0.77487972,103560.0,103550.0,0.16151403]
[1762881821191,0.61928349,103560.0,103550.0,0.16151403]
[1762881821495,0.52269679,103560.0,103550.0,0.16151403]
[1762881821897,0.61928349,103560.0,103550.0,0.16151403]
[1762881822497,0.77487972,103560.0,103550.0,0.16151403]
[1762881824089,1.13567972,103560.0,103550.0,0.16151403]
[1762881824490,0.72790056,103560.0,103550.0,0.16151403]
[1762881824790,1.13567972,103560.0,103550.0,0.16151403]
[1762881824995,1.03909302,103560.0,103550.0,0.16151403]
[1762881825696,1.13567972,103560.0,103550.0,0.16151403]
[1762881826900,1.03909302,103560.0,103550.0,0.16151403]
[1762881827284,0.88349679,103560.0,103550.0,0.16151403]
[1762881827598,0.36710056,103560.0,103550.0,0.16151403]
[1762881827794,0.67829302,103560.0,103550.0,0.16151403]
[1762881828488,0.52269679,103560.0,103550.0,0.31711026]
[1762881828688,0.00010056,103560.0,103550.0,0.67791026]
[1762881829098,0.00010056,103560.0,103550.0,0.71231046]
[1762881829299,0.36710056,103560.0,103550.0,0.95371046]
[1762881829510,0.00010056,103560.0,103550.0,1.00582724]
[1762881829798,0.00010056,103560.0,103550.0,0.76442724]
[1762881830100,0.00010056,103560.0,103550.0,0.97142704]
[1762881830595,0.00010056,103560.0,103550.0,0.73002704]
[1762881830992,0.00010056,103560.0,103550.0,0.97142704]
[1762881831701,0.00010056,103560.0,103550.0,0.73002704]
[1762881831900,0.00010056,103560.0,103550.0,0.97142704]
[1762881833697,0.15569679,103560.0,103550.0,0.60909481]
[1762881833888,0.25228349,103560.0,103550.0,0.60909481]
[1762881834092,0.25228349,103560.0,103550.0,0.24829481]
[1762881834297,0.40787972,103560.0,103550.0,0.19617803]
[1762881834494,0.31129302,103560.0,103550.0,0.19617803]
[1762881834693,0.25228349,103560.0,103550.0,0.19617803]
[1762881835696,0.31129302,103560.0,103550.0,0.19617803]
[1762881836003,0.40787972,103560.0,103550.0,0.19617803]
[1762881837101,0.31129302,103560.0,103550.0,0.19617803]
[1762881837804,0.67825302,103560.0,103550.0,0.19617803]
[1762881837993,0.52265679,103560.0,103550.0,0.19617803]
[1762881838196,0.52265679,103560.0,103550.0,0.55697803]
[1762881838598,0.77483972,103560.0,103550.0,0.16151403]
[1762881839607,1.13563972,103560.0,103550.0,0.16151403]
[1762881840303,0.36706056,103560.0,103550.0,0.16151403]
[1762881840498,1.13563972,103560.0,103550.0,0.16151403]
[1762881840705,0.67825302,103560.0,103550.0,0.16151403]
[1762881841098,1.28112076,103560.0,103550.0,0.16151403]
[1762881841297,1.28112076,103560.0,103550.0,0.02104803]
[1762881841701,1.43671699,103560.0,103550.0,0.006]
[1762881842111,0.096596,103550.0,103540.0,0.00014456]
[1762881842412,0.91395666,103550.0,103540.0,0.00014456]
[1762881843197,0.96599794,103550.0,103540.0,0.00014456]
[1762881843406,0.86940194,103550.0,103540.0,0.11190789]
[1762881843707,1.3330972,103550.0,103540.0,0.03828259]
[1762881844010,1.3330972,103550.0,103540.0,0.11190789]
[1762881844205,0.9660972,103550.0,103540.0,0.13488789]
[1762881844410,1.28105592,103550.0,103540.0,0.13488789]
[1762881844613,0.91405592,103550.0,103540.0,0.13488789]
[1762881844909,0.84947845,103550.0,103540.0,0.13488789]
[1762881845113,1.21647845,103550.0,103540.0,0.13488789]
[1762881845303,1.16443717,103550.0,103540.0,0.03828259]
[1762881845509,1.16443717,103550.0,103540.0,0.01530259]
[1762881845906,1.16443717,103550.0,103540.0,0.11190789]
[1762881846214,0.70084117,103550.0,103540.0,0.15677789]
[1762881846408,0.92247297,103550.0,103540.0,0.15677789]
[1762881846708,0.36709926,103550.0,103540.0,0.51757789]
[1762881847108,0.56167297,103550.0,103540.0,0.15677789]
[1762881847317,0.92247297,103550.0,103540.0,0.15677789]
[1762881848913,1.01906897,103550.0,103540.0,0.15677789]
[1762881849213,0.92247297,103550.0,103540.0,0.15677789]
[1762881849512,0.55547297,103550.0,103540.0,0.15677789]
[1762881849712,0.92251297,103550.0,103540.0,0.15677789]
[1762881850114,1.01910897,103550.0,103540.0,0.15677789]
[1762881850314,1.01910897,103550.0,103540.0,0.06017259]
[1762881850516,0.92251297,103550.0,103540.0,0.15677789]
[1762881850717,1.01910897,103550.0,103540.0,0.15677789]
[1762881851218,0.92251297,103550.0,103540.0,0.15677789]
[1762881851913,0.56171297,103550.0,103540.0,0.15677789]
[1762881852616,0.92251297,103550.0,103540.0,0.15677789]
[1762881853126,1.01910897,103550.0,103540.0,0.15677789]
[1762881854213,0.92251297,103550.0,103540.0,0.15677789]
[1762881854718,1.01910897,103550.0,103540.0,0.15677789]
[1762881855923,0.92251297,103550.0,103540.0,0.15677789]
[1762881856119,0.72793926,103550.0,103540.0,0.15677789]
[1762881856620,1.01910897,103550.0,103540.0,0.04721259]
[1762881856811,1.16364518,103550.0,103540.0,0.00014456]
[1762881858808,0.0966053,103540.0,103530.0,0.01296]
[1762881859014,0.65205276,103540.0,103530.0,0.01296]
[1762881859219,0.79653505,103540.0,103530.0,0.01296]
[1762881859412,0.79653505,103540.0,103530.0,0.03594]
[1762881860413,0.79653505,103540.0,103530.0,0.03694]
[1762881861217,0.79653505,103540.0,103530.0,0.01715803]
[1762881862418,0.80601161,103540.0,103530.0,0.01715803]
[1762881863628,0.80601161,103540.0,103530.0,0.03895803]
[1762881864717,0.79653505,103540.0,103530.0,0.06120803]
[1762881865626,0.84857633,103540.0,103530.0,0.002]
[1762881865825,0.79653505,103540.0,103530.0,0.002]
[1762881866026,0.80606683,103540.0,103530.0,0.002]
[1762881866923,0.76719906,103540.0,103530.0,0.002]
[1762881867323,0.922905,103540.0,103530.0,0.002]
[1762881867929,0.61149312,103540.0,103530.0,0.06099803]
[1762881868229,0.76719906,103540.0,103530.0,0.00419803]
[1762881868421,0.922905,103540.0,103530.0,0.00419803]
[1762881868621,0.76719906,103540.0,103530.0,0.00419803]
[1762881870635,0.922905,103540.0,103530.0,0.00419803]
[1762881870826,0.97487253,103540.0,103530.0,0.002]
[1762881871229,0.97495588,103540.0,103530.0,0.002]
[1762881871431,0.97487253,103540.0,103530.0,0.002]
[1762881871630,0.97494629,103540.0,103530.0,0.002]
[1762881871827,0.97487253,103540.0,103530.0,0.001]
[1762881872031,0.97587253,103540.0,103530.0,0.001]
[1762881872226,0.97597435,103540.0,103530.0,0.001]
[1762881872531,0.99286747,103540.0,103530.0,0.001]
[1762881872732,0.99296929,103540.0,103530.0,0.001]
[1762881872929,0.0966147,103530.0,103520.0,0.15352006]
[1762881873127,1.18807436,103530.0,103520.0,0.05909439]
[1762881873334,1.33353616,103530.0,103520.0,0.15571839]
[1762881873535,0.71413552,103530.0,103520.0,0.15571839]
[1762881873834,0.66206956,103530.0,103520.0,0.15571839]
[1762881874037,0.72798182,103530.0,103520.0,0.15571839]
[1762881874237,0.88368776,103530.0,103520.0,0.15571839]
[1762881874832,0.88468776,103530.0,103520.0,0.15571839]
[1762881875741,0.72898182,103530.0,103520.0,0.15571839]
[1762881875932,0.00110182,103530.0,103520.0,0.15571839]
[1762881876134,0.36818182,103530.0,103520.0,0.51651839]
[1762881876630,0.09771652,103530.0,103520.0,0.51651839]
[1762881876831,0.62050246,103530.0,103520.0,0.41989439]
[1762881877134,0.62050246,103530.0,103520.0,0.51651839]
[1762881877332,0.62050246,103530.0,103520.0,0.15571839]
[1762881877522,0.7762084,103530.0,103520.0,0.05909439]
[1762881877728,0.82559652,103530.0,103520.0,0.05909439]
[1762881877924,0.98130246,103530.0,103520.0,0.03684439]
[1762881878136,1.1370084,103530.0,103520.0,0.05909439]
[1762881879341,0.82559652,103530.0,103520.0,0.05909439]
[1762881879539,1.1370084,103530.0,103520.0,0.05909439]
[1762881880334,1.28150989,103530.0,103520.0,9.636e-05]
[1762881882037,1.28150989,103530.0,103520.0,0.01504439]
[1762881882936,1.25560157,103530.0,103520.0,0.01504439]
[1762881883539,1.25560157,103530.0,103520.0,0.03684439]
[1762881883929,1.25560157,103530.0,103520.0,0.05909439]
[1762881885441,0.97009801,103530.0,103520.0,0.05909439]
[1762881885648,1.25560157,103530.0,103520.0,0.05909439]
[1762881887730,1.25560157,103530.0,103520.0,0.00229439]
[1762881887941,1.30756571,103530.0,103520.0,9.636e-05]
[1762881888129,0.096633,103520.0,103500.0,0.1442608]
[1762881888332,1.01348538,103510.0,103500.0,0.19050883]
[1762881888529,1.11011868,103510.0,103500.0,0.19050883]
[1762881888740,1.01348538,103510.0,103500.0,0.19050883]
[1762881889133,1.11011868,103510.0,103500.0,0.19050883]
[1762881889332,1.01348538,103510.0,103500.0,0.19150883]
[1762881890035,1.01348538,103510.0,103500.0,0.19250883]
[1762881890343,1.01348538,103510.0,103500.0,0.19350883]
[1762881891932,1.11011868,103510.0,103500.0,0.19350883]
[1762881892138,1.01348538,103510.0,103500.0,0.15884483]
[1762881894037,0.72798182,103510.0,103500.0,0.15884483]
[1762881894237,1.01348538,103510.0,103500.0,0.15884483]
[1762881894747,1.11011868,103510.0,103500.0,0.15884483]
[1762881896050,0.74931868,103510.0,103500.0,0.15884483]
[1762881896845,0.74931868,103510.0,103500.0,0.06220803]
[1762881896846,1.25505219,103510.0,103500.0,0.06220803]
[1762881897147,1.25505219,103510.0,103500.0,0.15885073]
[1762881897838,1.15841889,103510.0,103500.0,0.15585073]
[1762881898039,1.15841889,103510.0,103500.0,0.15785073]
[1762881899945,0.87291533,103510.0,103500.0,0.15785073]
[1762881900247,0.87295533,103510.0,103500.0,0.15785073]
[1762881900448,0.96958863,103510.0,103500.0,0.15785073]
[1762881900844,0.60246863,103510.0,103500.0,0.15785073]
[1762881901045,0.96958863,103510.0,103500.0,0.15785073]
[1762881901641,1.25509219,103510.0,103500.0,0.15785073]
[1762881902843,1.25509219,103510.0,103500.0,0.00419803]
[1762881903251,1.25509219,103510.0,103500.0,0.03915803]
[1762881903752,1.25509219,103510.0,103500.0,0.01805803]
[1762881904439,1.25509219,103510.0,103500.0,0.01705803]
[1762881904645,0.0966427,103500.0,103490.0,0.1885341]
[1762881904844,0.40835976,103500.0,103490.0,0.09408063]
[1762881905145,0.91455132,103500.0,103490.0,0.0918826]
[1762881905346,0.91455132,103500.0,103490.0,8.86e-05]
[1762881906347,0.91455132,103500.0,103490.0,0.0010886]
[1762881906645,0.91455132,103500.0,103490.0,0.13489863]
[1762881906846,0.93506445,103500.0,103490.0,0.01614663]
[1762881907044,0.93606445,103500.0,103490.0,8.86e-05]
[1762881907247,0.93606445,103500.0,103490.0,0.0010886]
[1762881907451,0.94571433,103500.0,103490.0,0.0010886]
[1762881907852,0.94561663,103500.0,103490.0,0.0010886]
[1762881908048,0.94570069,103500.0,103490.0,0.0010886]
[1762881908253,0.94561663,103500.0,103490.0,8.86e-05]
[1762881909553,0.0966614,103480.0,103470.0,0.05713]
[1762881909757,1.00090421,103480.0,103470.0,0.15599873]
[1762881910051,0.6607709,103480.0,103470.0,0.05932803]
[1762881910347,1.1245523,103480.0,103470.0,0.05932803]
[1762881910547,1.0278909,103480.0,103470.0,0.15599873]
[1762881911053,1.02799452,103480.0,103470.0,0.15999873]
[1762881911550,1.02799452,103480.0,103470.0,0.15799873]
[1762881912051,1.12465592,103480.0,103470.0,0.15799873]
[1762881912548,1.12465592,103480.0,103470.0,0.05932803]
[1762881912950,1.12465592,103480.0,103470.0,0.15599873]
[1762881913150,1.02799452,103480.0,103470.0,0.15599873]
[1762881913443,1.12465592,103480.0,103470.0,0.15599873]
[1762881913643,0.87218484,103480.0,103470.0,0.15599873]
[1762881913843,0.68136672,103480.0,103470.0,0.15599873]
[1762881914050,0.89271704,103480.0,103470.0,0.15599873]
[1762881914252,1.04852672,103480.0,103470.0,0.15599873]
[1762881914454,1.14518812,103480.0,103470.0,0.05932803]
[1762881914945,1.14518812,103480.0,103470.0,0.15599873]
[1762881915145,1.14518812,103480.0,103470.0,0.05932803]
[1762881915545,1.14518812,103480.0,103470.0,0.03604803]
[1762881915746,1.14518812,103480.0,103470.0,0.01494803]
[1762881916050,1.3009978,103480.0,103470.0,0.01494803]
[1762881916952,1.14518812,103480.0,103470.0,0.01494803]
[1762881918459,1.14522812,103480.0,103470.0,0.15599873]
[1762881918655,1.14522812,103480.0,103470.0,0.13271873]
[1762881918963,0.77802812,103480.0,103470.0,0.01494803]
[1762881919148,1.14522812,103480.0,103470.0,0.13271873]
[1762881919656,1.14522812,103480.0,103470.0,0.15599873]
[1762881919860,1.04856672,103480.0,103470.0,0.15599873]
[1762881921249,1.14522812,103480.0,103470.0,0.15599873]
[1762881921446,1.04856672,103480.0,103470.0,0.15599873]
[1762881921848,0.68136672,103480.0,103470.0,0.15599873]
[1762881922051,1.04856672,103480.0,103470.0,0.15599873]
[1762881922254,0.77802802,103480.0,103470.0,0.15599873]
[1762881922456,1.04856672,103480.0,103470.0,0.15599873]
[1762881922656,0.68136672,103480.0,103470.0,0.15599873]
[1762881922864,1.04856672,103480.0,103470.0,0.15599873]
[1762881923855,0.68136672,103480.0,103470.0,0.15599873]
[1762881924263,0.89275704,103480.0,103470.0,0.15599873]
[1762881924571,0.77802802,103480.0,103470.0,0.15599873]
[1762881924859,1.3010377,103480.0,103470.0,0.00219803]
[1762881925257,1.14522802,103480.0,103470.0,0.03670803]
[1762881925762,0.77802802,103480.0,103470.0,0.03670803]
[1762881925962,1.14522802,103480.0,103470.0,0.03670803]
[1762881926750,0.9338377,103480.0,103470.0,0.01507803]
[1762881926957,0.0966707,103470.0,103460.0,0.05742]
[1762881927263,0.78982918,103470.0,103460.0,0.05961803]
[1762881927959,0.78982918,103470.0,103460.0,0.15629803]
[1762881928166,0.78982918,103470.0,103460.0,0.05961803]
[1762881928366,0.78982918,103470.0,103460.0,0.06161803]
[1762881929358,0.78982918,103470.0,103460.0,0.15829803]
[1762881929559,0.69315848,103470.0,103460.0,0.15829803]
[1762881931067,0.78982918,103470.0,103460.0,0.15829803]
[1762881931767,0.78982918,103470.0,103460.0,0.06161803]
[1762881932074,0.93567292,103470.0,103460.0,0.06161803]
[1762881932371,0.93567292,103470.0,103460.0,0.01805803]
[1762881932666,0.93567292,103470.0,103460.0,0.002]
[1762881932871,0.93567292,103470.0,103450.0,0.01386]
[1762881932872,0.09668,103460.0,103450.0,0.01386]
[1762881933068,1.31282927,103460.0,103450.0,0.01386]
[1762881933260,1.20615593,103460.0,103450.0,0.13437743]
[1762881933461,0.93563593,103460.0,103450.0,0.03768803]
[1762881933666,1.20615593,103460.0,103450.0,0.13437743]
[1762881933878,1.30283593,103460.0,103450.0,0.01605803]
[1762881934180,1.30283593,103460.0,103450.0,0.11274743]
[1762881934367,1.36204162,103460.0,103450.0,0.13437743]